bitfinex/quotes_ETHUSD_20260304
["timestamp","ask_amount","ask_price","bid_price","bid_amount"]
[1772616580839,0.002,2074.6,2074.0,1.20540019]
[1772616581071,0.002,2074.6,2074.0,6.70701529]
[1772616581277,0.002,2074.6,2074.1,0.4304192]
[1772616581440,0.002,2074.6,2074.0,6.70701529]
[1772616581639,0.002,2074.6,2074.1,0.43041597]
[1772616581838,0.002,2074.6,2074.0,6.70701529]
[1772616582071,0.002,2074.6,2074.1,0.4304171]
[1772616582378,0.002,2074.8,2074.2,0.43032359]
[1772616582668,0.002,2075.1,2074.3,5.92993869]
[1772616582669,1.20676405,2075.1,2074.3,5.92993869]
[1772616582886,0.002,2075.1,2074.4,5.92993869]
[1772616583037,1.20676325,2075.1,2074.4,5.4996151]
[1772616583238,0.002,2075.1,2074.5,5.92970692]
[1772616583441,0.002,2074.7,2074.6,0.43004953]
[1772616583668,0.002,2075.1,2074.6,5.92966463]
[1772616583873,0.002,2075.1,2074.6,5.4996151]
[1772616584241,0.002,2075.1,2074.7,1.20499349]
[1772616585548,0.002,2075.1,2074.7,6.70460859]
[1772616586950,0.002,2075.1,2074.7,1.20499349]
[1772616587146,0.002,2075.1,2074.6,1.20500894]
[1772616588575,0.002,2075.1,2074.6,6.70462404]
[1772616589451,0.002,2075.1,2074.6,1.20500894]
[1772616593392,6.22826934,2075.0,2074.1,6.70495717]
[1772616593594,6.22826934,2075.0,2074.1,1.20534207]
[1772616593795,4.81881264,2075.4,2074.1,1.20534207]
[1772616593796,1.20455804,2075.5,2074.2,0.42916972]
[1772616593978,6.22826934,2075.6,2074.2,0.42916972]
[1772616593979,7.43277685,2075.6,2074.4,5.4996151]
[1772616594177,7.43277685,2075.6,2074.6,5.4996151]
[1772616594995,7.43277685,2075.6,2074.8,0.001]
[1772616595198,0.002,2074.9,2074.8,5.5006151]
[1772616595401,0.97164713,2075.7,2074.9,4.29513796]
[1772616595571,0.97164713,2075.7,2075.0,6.02473321]
[1772616595765,0.97164713,2075.7,2075.0,5.59613796]
[1772616595988,0.84987599,2075.7,2075.0,5.59613796]
[1772616596205,0.78183077,2075.7,2075.1,4.29513796]
[1772616596902,0.002,2075.4,2075.2,4.72339448]
[1772616597070,0.002,2076.0,2075.3,1.20464511]
[1772616597266,0.002,2076.0,2075.3,5.49978307]
[1772616597467,0.002,2076.0,2075.4,4.29513796]
[1772616599179,0.002,2076.0,2075.5,1.20452902]
[1772616599510,0.002,2076.0,2075.5,2.50652902]
[1772616599873,0.002,2076.5,2075.6,4.72236223]
[1772616600100,0.002,2076.5,2075.8,4.29513796]
[1772616600873,0.002,2076.7,2075.8,4.29513796]
[1772616601206,0.002,2076.7,2075.9,1.20429693]
[1772616601512,6.23026934,2076.7,2075.9,1.20429693]
[1772616601681,6.23026934,2076.7,2075.7,1.302]
[1772616602214,0.002,2076.7,2075.8,4.29513796]
[1772616602575,6.23026934,2076.7,2075.8,1.303]
[1772616603097,6.23026934,2076.7,2075.4,4.29513796]
[1772616603408,6.22826934,2076.5,2075.5,1.20452902]
[1772616603578,6.22826934,2076.5,2075.1,1.20472074]
[1772616604158,6.22826934,2076.5,2075.2,4.29513796]
[1772616604579,6.22826934,2076.5,2075.1,2.50772074]
[1772616605596,6.22826934,2076.3,2075.1,2.50772074]
[1772616606000,6.22826934,2076.1,2075.1,1.303]
[1772616606315,6.22826934,2076.1,2075.1,2.50776087]
[1772616607586,7.43250826,2076.0,2075.1,2.50776087]
[1772616607883,6.22826934,2076.0,2075.1,6.80289883]
[1772616608210,1.20421424,2076.1,2075.1,6.80289883]
[1772616608211,1.20421424,2076.1,2075.2,4.29513796]
[1772616608909,7.43239225,2076.2,2075.4,0.001]
[1772616609496,7.43239225,2076.2,2075.4,1.20558706]
[1772616609682,1.20609636,2076.3,2075.4,5.50072502]
[1772616610197,7.4343657,2076.3,2075.4,5.50072502]
[1772616610898,0.002,2076.3,2075.5,4.29513796]
[1772616611099,0.002,2076.7,2075.7,4.29513796]
[1772616611299,0.002,2076.7,2075.9,4.29313796]
[1772616611493,0.002,2076.7,2076.0,5.49737688]
[1772616611721,7.43164696,2077.5,2076.4,4.29313796]
[1772616611922,7.43164696,2077.5,2076.6,4.29313796]
[1772616612126,7.43146502,2077.8,2076.7,1.7312792]
[1772616612355,6.22826934,2077.6,2076.5,1.304]
[1772616613223,6.22826934,2077.6,2076.0,1.20423892]
[1772616613424,6.22826934,2077.4,2075.9,1.20429314]
[1772616613748,6.22826934,2077.2,2075.8,4.81727796]
[1772616613948,6.22826934,2077.0,2075.7,2.50838352]
[1772616614854,6.22826934,2077.0,2075.7,2.50841106]
[1772616615237,6.22826934,2077.0,2075.7,2.50840847]
[1772616615451,6.22826934,2077.0,2075.5,4.81798646]
[1772616615655,6.22826934,2076.8,2075.7,1.20441296]
[1772616615841,6.22826934,2076.8,2075.8,0.42736626]
[1772616616045,6.22826934,2076.8,2075.9,1.303]
[1772616617532,6.22826934,2076.8,2075.6,4.81783335]
[1772616617533,6.22826934,2076.8,2075.4,0.001]
[1772616617738,6.22826934,2076.6,2075.4,0.001]
[1772616617932,6.22826934,2076.4,2075.4,0.001]
[1772616619431,7.67126934,2076.4,2075.4,0.001]
[1772616619659,6.48361779,2076.2,2075.4,0.001]
[1772616621638,6.31306565,2076.0,2075.4,0.001]
[1772616622138,6.31306565,2076.0,2075.6,0.001]
[1772616623744,1.20429693,2075.9,2075.6,0.001]
[1772616624069,7.51736258,2075.9,2075.6,0.001]
[1772616625270,1.20429693,2075.9,2075.6,0.001]
[1772616626565,1.20428522,2076.0,2075.6,0.001]
[1772616626760,1.2061679,2076.2,2075.6,6.19468818]
[1772616627772,0.002,2076.2,2075.7,0.42936096]
[1772616627974,1.20586398,2076.7,2075.9,6.19368818]
[1772616628144,0.002,2076.7,2076.1,6.19368818]
[1772616628468,1.20360117,2077.1,2076.1,6.19368818]
[1772616628653,1.20360117,2077.1,2076.2,6.62249829]
[1772616628970,1.20360117,2077.1,2076.2,6.19368818]
[1772616629550,7.51666682,2077.1,2076.0,1.20423892]
[1772616629756,7.51666682,2077.1,2076.1,0.42865857]
[1772616630074,7.51666682,2077.1,2076.0,1.20423892]
[1772616630374,7.51666682,2077.1,2076.2,1.20412291]
[1772616631158,7.51666682,2077.1,2076.1,1.20413852]
[1772616631984,6.31306565,2077.4,2076.2,6.19368818]
[1772616632171,6.31306565,2077.2,2076.2,6.19368818]
[1772616632484,1.20360117,2077.1,2076.3,1.20406492]
[1772616633871,7.51666682,2077.1,2076.3,1.20406492]
[1772616634211,2.64760117,2077.1,2075.9,6.19368818]
[1772616634364,7.51678272,2076.9,2076.0,4.81693758]
[1772616634565,7.51678272,2076.9,2075.7,1.20437549]
[1772616635582,7.51878272,2076.9,2075.7,1.20437549]
[1772616636181,7.51878272,2076.9,2075.8,6.62228847]
[1772616636363,0.002,2076.9,2076.1,7.39786909]
[1772616636706,0.002,2077.1,2076.2,6.19368818]
[1772616636873,0.002,2077.1,2076.4,6.19368818]
[1772616637189,1.20561518,2077.1,2076.1,7.39786909]
[1772616637365,7.51868083,2077.1,2076.2,1.72741943]
[1772616637565,0.002,2077.1,2076.3,0.42841281]
[1772616637771,0.002,2077.1,2076.3,6.19368818]
[1772616638173,0.002,2077.1,2076.5,6.19368818]
[1772616638368,2.74265602,2077.7,2076.5,6.19368818]
[1772616638369,4.8124419,2078.0,2077.0,6.19368818]
[1772616638564,1.20307988,2078.0,2077.1,1.299]
[1772616639069,1.20307988,2078.0,2077.1,7.49268818]
[1772616639507,6.31306565,2078.5,2077.3,6.19368818]
[1772616639997,6.31306565,2078.5,2077.4,0.42709522]
[1772616640205,6.31306565,2078.5,2077.3,6.19368818]
[1772616640514,1.20284834,2078.4,2077.4,7.39711554]
[1772616640669,1.20284834,2078.4,2077.5,6.19368818]
[1772616640867,7.51591399,2078.4,2077.5,6.19368818]
[1772616641071,7.51591399,2078.4,2077.4,1.20342736]
[1772616641906,7.51591399,2078.4,2077.2,1.20351318]
[1772616642281,7.51591399,2078.4,2077.2,7.39720136]
[1772616642692,7.51591399,2078.4,2077.0,1.20365912]
[1772616643001,7.51591399,2078.4,2076.8,7.49268818]
[1772616644798,7.51591399,2078.4,2076.9,1.20371707]
[1772616644799,6.31306565,2078.2,2076.9,1.20371707]
[1772616645976,6.31306565,2078.2,2076.6,1.20389097]
[1772616646300,6.31306565,2077.8,2076.6,1.20389097]
[1772616646604,7.75806565,2077.8,2076.6,1.20389097]
[1772616646974,6.31306565,2077.6,2076.6,1.20389097]
[1772616647581,6.31306565,2077.6,2076.2,6.19368818]
[1772616647797,6.31306565,2077.6,2076.3,1.20406492]
[1772616648602,6.31306565,2077.6,2076.2,7.39776603]
[1772616648790,6.03403086,2077.4,2076.2,7.39776603]
[1772616649502,7.23751615,2077.3,2076.2,7.39776603]
[1772616650207,7.23751615,2077.3,2076.1,2.50413326]
[1772616650411,7.23751615,2077.3,2076.1,8.57952413]
[1772616650710,7.23751615,2077.3,2076.2,6.07539087]
[1772616651280,1.20336943,2077.5,2076.4,6.07539087]
[1772616652105,1.20336943,2077.5,2076.6,6.07539087]
[1772616652291,1.20336943,2077.5,2076.8,6.07539087]
[1772616653188,1.20334041,2077.6,2076.8,6.07539087]
[1772616653577,1.20319568,2077.8,2076.9,1.20371707]
[1772616653782,1.20319568,2077.8,2076.9,7.27910794]
[1772616654212,1.20317474,2077.9,2076.9,7.27910794]
[1772616654522,0.002,2078.2,2077.1,6.07539087]
[1772616654696,0.002,2078.2,2077.0,0.4283798]
[1772616654697,0.002,2078.2,2077.3,6.07539087]
[1772616654887,6.03403086,2078.8,2077.6,6.07539087]
[1772616654888,7.23664871,2078.8,2077.6,6.07539087]
[1772616655091,1.20268004,2078.7,2077.8,6.07539087]
[1772616655293,6.03403086,2078.8,2077.8,6.07539087]
[1772616655294,0.002,2078.5,2077.9,1.298]
[1772616655619,0.002,2078.5,2078.1,1.20302199]
[1772616657486,7.2365731,2079.0,2078.1,1.20302199]
[1772616657687,1.20248111,2079.1,2078.1,7.27941286]
[1772616657888,6.03403086,2079.1,2078.2,0.42745176]
[1772616658119,6.03403086,2079.1,2078.1,8.57841286]
[1772616659499,1.20235355,2079.3,2078.2,6.07539087]
[1772616659823,1.20235355,2079.3,2078.3,7.27829709]
[1772616660022,7.23638441,2079.3,2078.3,1.20290622]
[1772616660183,7.23638441,2079.3,2078.4,1.299]
[1772616660592,6.03403086,2079.3,2078.4,1.299]
[1772616660830,0.32484687,2079.8,2078.4,7.37439087]
[1772616661016,6.03403086,2079.7,2078.3,7.27829709]
[1772616661233,6.03403086,2079.7,2078.2,2.50195653]
[1772616661537,6.03403086,2079.7,2078.2,1.299]
[1772616661705,6.03403086,2079.5,2078.2,2.50196326]
[1772616661912,7.23630074,2079.4,2078.2,8.57735413]
[1772616662412,7.23630074,2079.4,2078.3,6.07539087]
[1772616662596,7.23630074,2079.4,2078.2,2.50196326]
[1772616662795,7.23630074,2079.4,2078.3,1.299]
[1772616663213,7.23630074,2079.4,2078.3,7.37439087]
[1772616663731,6.03403086,2079.4,2078.3,7.37439087]
[1772616664119,7.23633831,2079.4,2078.4,7.27823921]
[1772616664447,6.03403086,2079.3,2078.1,0.001]
[1772616664608,2.64530745,2079.4,2077.7,0.001]
[1772616664609,6.03503086,2078.9,2077.7,0.001]
[1772616664810,6.03403086,2078.7,2077.7,0.001]
[1772616665147,1.443,2078.8,2077.7,0.001]
[1772616665434,6.03403086,2079.6,2078.7,0.86902257]
[1772616665634,6.03403086,2079.6,2077.9,6.07539087]
[1772616665930,6.03403086,2079.6,2077.7,1.2687337]
[1772616665931,6.03403086,2079.6,2078.0,6.50195918]
[1772616666104,6.03403086,2079.4,2078.1,7.70498117]
[1772616666308,6.03403086,2079.4,2078.1,7.27841286]
[1772616666503,6.03403086,2079.4,2077.8,1.299]
[1772616666807,6.03403086,2079.4,2077.9,1.20313778]
[1772616667337,6.03403086,2078.1,2076.5,4.81533201]
[1772616667499,6.03403086,2077.7,2076.5,1.20394895]
[1772616668133,7.23734237,2077.6,2076.5,1.20394895]
[1772616668519,6.03403086,2077.6,2076.5,1.20394895]
[1772616668851,7.23682133,2078.5,2076.7,6.07539087]
[1772616669816,6.03403086,2078.3,2076.7,6.07539087]
[1772616670158,6.03403086,2078.1,2076.7,1.20380074]
[1772616670322,6.03403086,2078.1,2076.6,1.20386002]
[1772616670515,6.03403086,2078.1,2076.5,1.20391453]
[1772616670715,6.03403086,2077.7,2076.4,0.001]
[1772616670922,6.03403086,2077.5,2076.4,0.001]
[1772616671414,2.72383559,2077.8,2076.4,0.001]
[1772616671613,2.72383559,2077.8,2076.4,7.28038143]
[1772616671811,6.03403086,2077.7,2076.4,1.20499056]
[1772616672114,1.20331151,2077.6,2076.4,1.20499056]
[1772616672640,7.23734237,2077.6,2076.7,0.001]
[1772616673942,1.3768345,2078.3,2076.8,6.07539087]
[1772616674297,6.03403086,2079.0,2077.4,0.065536]
[1772616674559,0.002,2079.2,2078.1,6.07539087]
[1772616674718,0.002,2079.2,2078.3,6.07539087]
[1772616674914,0.002,2079.2,2078.4,6.5043401]
[1772616675155,0.002,2079.4,2078.5,6.14092687]
[1772616675363,0.002,2079.4,2078.6,6.50355551]
[1772616675650,0.002,2079.4,2078.6,6.07539087]
[1772616676147,0.002,2079.4,2078.7,1.20267474]
[1772616677711,6.03603086,2079.4,2078.4,1.20284834]
[1772616678137,0.002,2079.4,2078.3,4.81139337]
[1772616678313,0.002,2079.4,2078.2,4.81139337]
[1772616678740,0.002,2079.4,2078.3,6.30703779]
[1772616679612,0.002,2079.4,2078.4,1.309]
[1772616680017,0.32460613,2081.0,2078.5,6.80046334]
[1772616680273,6.53822144,2081.0,2079.7,1.20209645]
[1772616680428,0.32460613,2081.0,2079.8,7.93773702]
[1772616680618,7.41449916,2081.8,2079.9,6.73355145]
[1772616680822,6.21361531,2081.7,2080.0,6.73355145]
[1772616681152,6.21361531,2081.7,2080.0,6.30703779]
[1772616681554,6.21361531,2081.7,2080.1,6.34200146]
[1772616681853,6.28856802,2082.7,2081.7,0.47380254]
[1772616682054,6.28856802,2082.7,2080.2,3.80503002]
[1772616682055,6.28856802,2082.7,2080.3,6.34200146]
[1772616682352,6.28856802,2082.5,2080.5,6.34200146]
[1772616682929,6.28856802,2082.5,2080.4,1.20169198]
[1772616683250,6.28856802,2082.3,2080.5,6.34200146]
[1772616684120,7.74056802,2082.2,2080.5,6.34200146]
[1772616684324,1.20071082,2082.1,2080.6,7.54357792]
[1772616684557,6.28856802,2082.7,2081.1,0.065536]
[1772616684852,6.28856802,2082.7,2081.2,7.65400146]
[1772616684853,1.20042254,2082.6,2081.2,7.65400146]
[1772616685020,6.28856802,2083.1,2081.2,7.65400146]
[1772616685224,1.20019203,2083.0,2081.4,6.34200146]
[1772616685441,7.48876005,2083.0,2081.4,6.34200146]
[1772616685650,1.2000192,2083.3,2081.7,6.49148645]
[1772616685821,1.2000192,2083.3,2081.7,6.34200146]
[1772616686022,0.64881907,2083.4,2081.8,6.34200146]
[1772616686246,1.84878983,2083.4,2081.9,7.69231261]
[1772616686448,1.84878983,2083.4,2082.0,7.65600146]
[1772616687579,1.84882756,2083.4,2082.4,6.34200146]
[1772616687754,1.84882756,2083.4,2082.3,1.69006095]
[1772616688359,0.002,2082.5,2082.1,1.20071082]
[1772616688575,1.84882756,2083.4,2082.1,0.001]
[1772616688576,8.13739558,2083.4,2082.1,0.001]
[1772616688880,4.7998464,2083.7,2082.1,0.001]
[1772616688881,4.79937286,2083.7,2082.1,6.34300146]
[1772616689053,11.08794088,2083.7,2082.1,6.34300146]
[1772616689247,6.28856802,2083.6,2082.1,0.001]
[1772616689781,6.28856802,2083.4,2082.1,0.001]
[1772616690277,1.2000768,2083.2,2082.1,0.001]
[1772616690785,7.48864482,2083.2,2082.1,0.001]
[1772616690981,1.459,2083.1,2082.1,0.001]
[1772616691274,6.28856802,2083.1,2082.1,0.001]
[1772616691475,1.459,2083.0,2082.1,0.001]
[1772616691679,7.74756802,2083.0,2082.1,0.001]
[1772616691869,7.74856802,2082.9,2082.1,0.001]
[1772616692073,6.28856802,2082.9,2082.1,0.001]
[1772616692593,1.2000768,2083.2,2082.1,0.001]
[1772616692594,1.46,2083.1,2082.1,0.001]
[1772616692751,2.6600768,2083.2,2082.1,0.001]
[1772616692951,7.48862734,2083.3,2082.1,0.001]
[1772616693283,1.20005932,2083.3,2082.1,0.001]
[1772616694281,7.48862734,2083.3,2082.1,0.001]
[1772616694676,7.48862734,2083.3,2081.7,0.001]
[1772616694677,6.28856802,2083.1,2081.7,0.001]
[1772616694883,6.28856802,2082.8,2081.7,0.001]
[1772616695211,6.28856802,2082.6,2081.7,0.001]
[1772616696499,6.28856802,2082.4,2081.7,0.001]
[1772616696801,6.28856802,2082.4,2080.3,1.20174974]
[1772616697721,6.28856802,2082.2,2080.1,7.54381707]
[1772616698605,6.28856802,2082.0,2080.1,7.54381707]
[1772616698795,6.28856802,2081.8,2080.1,7.54381707]
[1772616698972,6.28856802,2081.8,2079.7,4.80824378]
[1772616699172,6.28856802,2081.8,2079.5,1.20221207]
[1772616699386,6.28856802,2081.6,2079.5,1.20221207]
[1772616699591,6.28856802,2081.2,2078.8,7.54461835]
[1772616699996,6.28856802,2081.0,2078.8,7.54461835]
[1772616700177,0.065536,2080.9,2078.8,1.18103828]
[1772616700378,6.28856802,2080.8,2078.8,1.17903828]
[1772616700573,7.49014448,2080.6,2078.5,1.2037326]
[1772616701114,6.28856802,2080.4,2078.5,0.001]
[1772616701309,6.28856802,2079.6,2078.5,0.001]
[1772616701581,6.28856802,2079.4,2078.5,0.001]
[1772616701783,7.75356802,2079.3,2078.5,0.001]
[1772616702202,6.28856802,2079.3,2078.5,0.001]
[1772616702521,7.75456802,2079.2,2078.5,0.001]
[1772616702720,6.28856802,2079.0,2078.5,0.001]
[1772616703026,6.28856802,2078.9,2078.5,0.001]
[1772616703223,1.467,2078.8,2078.5,0.001]
[1772616703435,1.467,2078.8,2078.3,0.001]
[1772616703636,1.467,2078.8,2078.4,0.001]
[1772616703793,1.468,2078.7,2078.4,0.001]
[1772616704221,7.75656802,2078.7,2078.0,0.002]
[1772616704491,7.75656802,2078.7,2077.1,5.08675488]
[1772616704694,7.75656802,2078.7,2076.7,1.204833]
[1772616704695,6.28856802,2078.5,2076.7,1.204833]
[1772616704922,6.28856802,2078.3,2076.7,1.204833]
[1772616705316,1.47,2078.2,2076.7,1.204833]
[1772616705663,6.28856802,2078.1,2076.7,1.204833]
[1772616705930,1.47,2078.0,2076.7,7.54683446]
[1772616706392,1.471,2078.0,2076.7,7.54683446]
[1772616707006,6.28856802,2078.0,2076.7,1.204833]
[1772616707205,1.472,2077.9,2076.7,1.204833]
[1772616707716,1.472,2077.8,2076.7,1.204833]
[1772616708018,1.472,2077.9,2076.7,7.54683446]
[1772616708225,1.473,2078.0,2076.7,7.54683446]
[1772616708425,1.20284834,2078.4,2076.7,7.54683446]
[1772616708626,1.473,2078.3,2076.7,7.54683446]
[1772616708929,1.2029641,2078.2,2076.7,7.54683446]
[1772616709238,2.6759641,2078.2,2076.7,7.54683446]
[1772616709742,2.67588961,2078.4,2076.7,7.54683446]
[1772616710039,1.474,2078.3,2076.7,7.54683446]
[1772616710244,7.52588799,2078.3,2076.7,7.54683446]
[1772616711034,7.25482461,2078.3,2076.7,7.54683446]
[1772616711239,1.474,2078.2,2076.7,7.54683446]
[1772616711444,1.20293662,2078.3,2076.7,7.54683446]
[1772616711622,7.52588799,2078.2,2076.7,7.54683446]
[1772616711825,7.52588799,2078.2,2076.7,1.204833]
[1772616712551,7.25467846,2078.5,2076.8,6.05609866]
[1772616713447,7.25467846,2078.5,2076.9,1.20371707]
[1772616713944,6.05188799,2078.3,2076.9,1.20371707]
[1772616715214,6.05188799,2078.1,2076.9,0.001]
[1772616716151,7.52588799,2078.0,2076.9,0.001]
[1772616716438,7.52588799,2077.9,2076.9,0.001]
[1772616717244,6.05188799,2077.7,2076.9,0.001]
[1772616718146,1.475,2077.6,2076.9,0.001]
[1772616718447,1.475,2077.5,2076.9,0.001]
[1772616719651,1.475,2077.4,2076.5,0.001]
[1772616720163,7.52688799,2077.4,2076.5,0.001]
[1772616720332,6.05188799,2077.4,2076.5,0.001]
[1772616720539,7.52688799,2077.3,2076.5,0.001]
[1772616720847,7.25514158,2077.7,2076.5,0.001]
[1772616721220,1.475,2077.6,2076.5,0.001]
[1772616721431,7.25514158,2077.7,2076.5,0.001]
[1772616721619,1.475,2077.6,2076.5,6.05709866]
[1772616721831,8.73014565,2077.7,2076.5,6.05709866]
[1772616722228,0.002,2078.5,2076.5,6.05709866]
[1772616722229,6.05188799,2078.2,2076.5,6.05709866]
[1772616722446,6.05188799,2078.2,2076.7,6.05609866]
[1772616722447,1.475,2078.2,2076.7,6.05609866]
[1772616722752,0.002,2078.3,2076.9,6.05609866]
[1772616722951,1.477,2078.3,2076.9,6.05609866]
[1772616723524,1.477,2078.3,2077.1,6.05609866]
[1772616723525,2.6799102,2078.3,2077.1,6.05609866]
[1772616723721,0.002,2078.3,2077.1,6.05609866]
[1772616724913,0.002,2078.5,2077.3,6.05609866]
[1772616725142,7.85411951,2079.5,2077.6,0.065536]
[1772616725330,6.65188007,2079.5,2077.9,6.05609866]
[1772616725538,2.07499208,2079.5,2078.3,6.05609866]
[1772616725740,0.59999208,2079.5,2078.3,6.05609866]
[1772616726319,6.05188799,2079.4,2078.2,1.2029641]
[1772616726763,7.52588799,2079.3,2078.2,1.2029641]
[1772616727630,7.25427352,2079.2,2077.7,4.81293961]
[1772616727873,7.25427352,2079.2,2077.6,1.20331151]
[1772616728021,7.25427352,2079.2,2077.5,10.86937743]
[1772616728022,6.05188799,2079.0,2077.5,7.25946113]
[1772616728326,6.05188799,2079.0,2077.5,6.05609866]
[1772616728538,1.15884137,2079.1,2077.3,1.20348093]
[1772616728539,1.474,2078.9,2077.3,1.20348093]
[1772616728853,2.60184137,2079.1,2077.0,1.20365912]
[1772616728854,7.52588799,2078.8,2077.0,1.20365912]
[1772616729155,7.52588799,2078.7,2077.1,8.64812956]
[1772616729320,7.52588799,2078.7,2077.2,0.43048208]
[1772616729520,6.05188799,2078.5,2076.9,4.81486205]
[1772616729848,6.05188799,2078.5,2077.0,0.4315954]
[1772616730146,6.05188799,2078.5,2076.9,4.81486205]
[1772616730330,6.05188799,2078.5,2076.9,1.20371707]
[1772616730525,6.05188799,2078.5,2076.8,4.81600018]
[1772616730526,6.05188799,2078.5,2076.8,1.20476251]
[1772616730846,2.36157397,2078.6,2076.8,1.20476251]
[1772616730847,6.05188799,2078.3,2076.8,1.20476251]
[1772616731146,6.05188799,2078.1,2076.8,0.001]
[1772616731327,6.05188799,2078.1,2076.8,1.20476345]
[1772616731524,6.05188799,2077.9,2076.8,0.001]
[1772616731729,6.05188799,2077.7,2076.8,0.001]
[1772616731937,1.475,2077.6,2076.8,0.001]
[1772616732515,7.52688799,2077.6,2076.5,0.001]
[1772616732821,6.05188799,2077.3,2076.3,0.001]
[1772616733046,2.78332636,2077.6,2076.1,0.001]
[1772616733047,7.21072936,2077.1,2076.1,0.001]
[1772616733366,6.05188799,2076.9,2076.1,0.001]
[1772616733655,0.065536,2077.2,2076.1,0.001]
[1772616733656,7.25577896,2076.6,2076.1,0.001]
[1772616734154,7.25577896,2076.6,2075.9,0.001]
[1772616734155,6.05188799,2076.4,2075.9,0.001]
[1772616734645,0.001,2076.5,2075.9,0.001]
[1772616734843,1.476,2076.4,2075.9,0.001]
[1772616735226,0.001,2076.5,2075.9,0.001]
[1772616735861,1.20354323,2077.2,2076.0,0.43120783]
[1772616736024,1.20354323,2077.2,2075.9,0.001]
[1772616736762,1.20354323,2077.2,2076.0,0.43149703]
[1772616737071,1.20343896,2077.4,2076.2,6.05609866]
[1772616737422,1.20353836,2077.3,2075.9,0.066536]
[1772616737658,2.68053836,2077.3,2076.0,0.43138359]
[1772616737859,2.68053836,2077.3,2076.1,0.43146972]
[1772616738032,2.68053836,2077.3,2075.9,7.26139559]
[1772616738344,1.20348547,2077.3,2076.0,6.59700195]
[1772616738656,0.002,2076.9,2076.1,0.431515]
[1772616738960,0.002,2076.9,2075.9,1.20529693]
[1772616739157,0.002,2076.9,2076.0,0.43189133]
[1772616739359,0.002,2076.9,2075.9,1.20529693]
[1772616739659,1.479,2076.9,2075.9,1.20529693]
[1772616739958,2.68274426,2076.9,2075.9,0.001]
[1772616740136,0.002,2076.9,2075.9,6.16648695]
[1772616740823,0.002,2076.9,2076.0,6.59779362]
[1772616741025,0.002,2076.9,2076.1,0.43230667]
[1772616741226,1.15884137,2078.5,2076.3,6.23102295]
[1772616741227,1.20313778,2077.9,2076.3,6.23102295]
[1772616741469,0.001,2077.9,2076.6,6.23102295]
[1772616741772,0.001,2077.9,2076.7,6.63217703]
[1772616741983,0.001,2077.9,2076.9,1.20371707]
[1772616742330,6.20961744,2078.2,2076.9,1.20371707]
[1772616742776,6.20961744,2078.0,2076.9,1.20371707]
[1772616743315,0.002,2077.2,2076.9,1.20371707]
[1772616743609,1.477,2077.9,2076.9,1.20371707]
[1772616743771,0.001,2077.8,2076.9,1.20371707]
[1772616744374,1.20419568,2077.8,2076.4,7.4697877]
[1772616744576,0.001,2077.7,2076.5,0.43161482]
[1772616744914,0.001,2077.7,2076.6,0.43161482]
[1772616745072,1.20319568,2077.8,2076.4,1.20400693]
[1772616745073,6.21061744,2077.6,2076.4,1.20400693]
[1772616745279,6.21061744,2077.6,2076.2,1.20407765]
[1772616745600,6.20961744,2077.4,2076.1,0.001]
[1772616745770,6.20961744,2077.2,2076.1,0.001]
[1772616745972,6.20961744,2077.0,2076.1,1.20518047]
[1772616746172,6.20961744,2076.9,2076.1,1.20516369]
[1772616746477,2.67981824,2076.8,2076.1,0.001]
[1772616746802,0.001,2076.8,2076.1,0.001]
[1772616746994,4.8146358,2077.1,2076.1,0.001]
[1772616746995,0.001,2076.7,2076.1,0.001]
[1772616747303,0.001,2076.9,2076.1,0.001]
[1772616748497,1.476,2077.4,2076.1,6.20124477]
[1772616748705,6.20961744,2077.9,2076.1,6.20124477]
[1772616748706,0.001,2077.2,2076.1,6.20124477]
[1772616748921,1.476,2077.7,2076.1,6.20124477]
[1772616749078,1.477,2077.7,2076.1,6.20124477]
[1772616749272,0.001,2077.7,2076.1,6.20124477]
[1772616749600,6.21061744,2077.6,2076.1,6.20124477]
[1772616749807,6.21061744,2077.6,2076.2,6.20024477]
[1772616750484,2.67836943,2077.5,2076.3,1.20406492]
[1772616750886,1.20336943,2077.5,2076.3,1.20406492]
[1772616751107,1.476,2077.4,2076.3,1.20406492]
[1772616751809,0.001,2077.4,2076.3,1.20406492]
[1772616752800,1.476,2077.4,2076.3,1.20406492]
[1772616752995,7.68561744,2077.4,2076.3,1.20406492]
[1772616754677,7.41310273,2077.3,2076.1,0.001]
[1772616754982,7.41510273,2077.3,2076.1,0.001]
[1772616755304,6.21061744,2077.2,2075.9,0.003]
[1772616755680,6.20961744,2077.0,2075.9,0.003]
[1772616755876,6.20961744,2076.8,2075.9,0.003]
[1772616756277,6.20961744,2076.6,2075.9,0.003]
[1772616756696,7.41456639,2076.5,2075.9,0.003]
[1772616758283,1.473,2076.4,2075.9,0.003]
[1772616758486,1.473,2076.3,2075.9,0.003]
[1772616758794,1.20412291,2076.2,2075.9,0.003]
[1772616758981,1.473,2076.1,2075.9,0.003]
[1772616759183,1.474,2076.1,2075.9,0.003]
[1772616759518,1.474,2076.1,2075.6,0.001]
[1772616759519,1.473,2076.0,2075.6,0.001]
[1772616760419,1.474,2076.0,2075.6,0.001]
[1772616760621,0.001,2076.4,2075.6,0.001]
[1772616760800,1.20702146,2076.4,2075.6,1.20547099]
[1772616761002,2.68002146,2076.4,2075.6,0.001]
[1772616761309,1.473,2076.3,2075.6,0.001]
[1772616761705,7.68261744,2076.3,2075.6,0.001]
[1772616761907,7.68361744,2076.2,2075.6,0.001]
[1772616762118,0.001,2076.1,2075.6,0.001]
[1772616762324,6.21161744,2076.1,2075.6,0.001]
[1772616762822,1.20423892,2076.0,2075.6,0.001]
[1772616763022,7.41385636,2076.0,2075.2,0.001]
[1772616763209,7.41485636,2076.0,2075.2,0.001]
[1772616763518,1.472,2075.9,2075.2,0.001]
[1772616763707,7.68161744,2075.9,2075.2,0.001]
[1772616763909,0.001,2075.8,2075.2,0.001]
[1772616764493,0.001,2075.7,2075.2,0.001]
[1772616764805,1.20447099,2075.6,2075.2,0.001]
[1772616765206,1.472,2075.5,2074.9,0.001]
[1772616765418,1.471,2075.4,2074.9,0.001]
[1772616765723,1.472,2075.5,2074.9,0.001]